[Event "Chessable Masters - Torneo preliminare"]
[White "Mamedov, Rauf"]
[Black "Salgado Lopez, Ivan"]
[WhiteFideId "13401653"]
[BlackFideId "2257327"]
[WhiteElo "2632"]
[BlackElo "2554"]
[Result "0-1"]
[Round "7"]
[TimeControl "600+2"]
[Date "2023.03.13"]
[WhiteClock "0:00:25"]
[BlackClock "0:00:23"]

1. Nf3 {[%clk 0:09:48]}  d5 {[%clk 0:09:52]} 2. g3 {[%clk 0:09:48]}  Nf6 {[%clk 0:09:43]} 3. Bg2 {[%clk 0:09:49]}  e6 {[%clk 0:09:45]} 4. O-O {[%clk 0:09:49]}  Be7 {[%clk 0:09:47]} 5. d3 {[%clk 0:09:50]}  O-O {[%clk 0:09:47]} 6. Nbd2 {[%clk 0:09:51]}  a5 {[%clk 0:09:49]} 7. e4 {[%clk 0:09:52]}  a4 {[%clk 0:09:50]} 8. a3 {[%clk 0:09:53]}  c5 {[%clk 0:09:48]} 9. Re1 {[%clk 0:09:54]}  Nc6 {[%clk 0:09:49]} 10. e5 {[%clk 0:09:55]}  Nd7 {[%clk 0:09:50]} 11. Nf1 {[%clk 0:09:57]}  Ra6 {[%clk 0:09:46]} 12. h4 {[%clk 0:09:57]}  f6 {[%clk 0:09:45]} 13. exf6 {[%clk 0:09:56]}  Nxf6 {[%clk 0:09:43]} 14. N1h2 {[%clk 0:09:42]}  Bd6 {[%clk 0:09:28]} 15. c4 {[%clk 0:09:29]}  dxc4 {[%clk 0:09:04]} 16. dxc4 {[%clk 0:09:29]}  e5 {[%clk 0:09:06]} 17. Be3 {[%clk 0:08:56]}  Nd4 {[%clk 0:08:41]} 18. Ng5 {[%clk 0:07:26]}  Bb8 {[%clk 0:07:45]} 19. Ne4 {[%clk 0:07:07]}  Nxe4 {[%clk 0:06:38]} 20. Bxe4 {[%clk 0:07:09]}  h6 {[%clk 0:06:29]} 21. Rb1 {[%clk 0:06:00]}  Kh8 {[%clk 0:06:27]} 22. Qh5 {[%clk 0:05:40]}  Qe8 {[%clk 0:06:03]} 23. Qxe8 {[%clk 0:05:39]}  Rxe8 {[%clk 0:06:04]} 24. Nf3 {[%clk 0:05:13]}  Rb6 {[%clk 0:05:49]} 25. Nd2 {[%clk 0:05:09]}  Be6 {[%clk 0:05:34]} 26. Kg2 {[%clk 0:05:06]}  Bg8 {[%clk 0:05:28]} 27. h5 {[%clk 0:04:52]}  Rd8 {[%clk 0:04:50]} 28. Bg6 {[%clk 0:04:32]}  Bc7 {[%clk 0:04:41]} 29. Rec1 {[%clk 0:03:50]}  Rc6 {[%clk 0:04:23]} 30. Be4 {[%clk 0:03:37]}  Rb6 {[%clk 0:04:21]} 31. Bg6 {[%clk 0:03:10]}  Rc6 {[%clk 0:04:20]} 32. Be4 {[%clk 0:02:56]}  Rb6 {[%clk 0:04:20]} 33. Nf3 {[%clk 0:02:58]}  Bf7 {[%clk 0:03:46]} 34. g4 {[%clk 0:02:46]}  Be6 {[%clk 0:03:47]} 35. Kh3 {[%clk 0:01:46]}  Ne2 {[%clk 0:02:57]} 36. Re1 {[%clk 0:01:45]}  Bxc4 {[%clk 0:02:26]} 37. Nh4 {[%clk 0:01:45]}  Kg8 {[%clk 0:02:10]} 38. Ng6 {[%clk 0:01:38]}  Rb3 {[%clk 0:01:56]} 39. Kg2 {[%clk 0:01:31]}  Nd4 {[%clk 0:01:30]} 40. Bd2 {[%clk 0:01:20]}  Be6 {[%clk 0:01:21]} 41. g5 {[%clk 0:00:49]}  Bh3+ {[%clk 0:01:12]} 42. Kg1 {[%clk 0:00:33]}  Bg4 {[%clk 0:00:47]} 43. Ne7+ {[%clk 0:00:22]}  Kf7 {[%clk 0:00:41]} 44. Nd5 {[%clk 0:00:23]}  Bb8 {[%clk 0:00:29]} 45. g6+ {[%clk 0:00:18]}  Kf8 {[%clk 0:00:23]} 46. Bc3 {[%clk 0:00:16]}  Bxh5 {[%clk 0:00:20]} 47. Ne3 {[%clk 0:00:13]}  Rb6 {[%clk 0:00:17]} 48. Ba5 {[%clk 0:00:12]}  Rbd6 {[%clk 0:00:14]} 49. Bxd8 {[%clk 0:00:13]}  Rxd8 {[%clk 0:00:16]} 50. Kg2 {[%clk 0:00:13]}  b5 {[%clk 0:00:14]} 51. Nf5 {[%clk 0:00:10]}  Bxg6 {[%clk 0:00:12]} 52. Rbd1 {[%clk 0:00:06]}  Bxf5 {[%clk 0:00:11]} 53. Bxf5 {[%clk 0:00:08]}  c4 {[%clk 0:00:13]} 54. Be4 {[%clk 0:00:08]}  Rd6 {[%clk 0:00:12]} 55. Rh1 {[%clk 0:00:08]}  Rf6 {[%clk 0:00:13]} 56. f3 {[%clk 0:00:08]}  Bd6 {[%clk 0:00:14]} 57. Rh5 {[%clk 0:00:08]}  Ke7 {[%clk 0:00:15]} 58. Kf2 {[%clk 0:00:09]}  Ne6 {[%clk 0:00:13]} 59. Rhh1 {[%clk 0:00:10]}  Bc5+ {[%clk 0:00:14]} 60. Kg3 {[%clk 0:00:08]}  Nd4 {[%clk 0:00:15]} 61. Rh5 {[%clk 0:00:07]}  Ne2+ {[%clk 0:00:15]} 62. Kh2 {[%clk 0:00:09]}  Bd4 {[%clk 0:00:12]} 63. Rd2 {[%clk 0:00:08]}  Nf4 {[%clk 0:00:12]} 64. Rh4 {[%clk 0:00:10]}  g5 {[%clk 0:00:12]} 65. Rg4 {[%clk 0:00:11]}  Kd6 {[%clk 0:00:12]} 66. Rc2 {[%clk 0:00:08]}  Kc5 {[%clk 0:00:14]} 67. Bh7 {[%clk 0:00:10]}  Rb6 {[%clk 0:00:14]} 68. Bg8 {[%clk 0:00:11]}  Rg6 {[%clk 0:00:13]} 69. Bf7 {[%clk 0:00:12]}  Rg7 {[%clk 0:00:14]} 70. Be8 {[%clk 0:00:14]}  Re7 {[%clk 0:00:14]} 71. Rxf4 {[%clk 0:00:10]}  exf4 {[%clk 0:00:13]} 72. Bg6 {[%clk 0:00:11]}  Re3 {[%clk 0:00:14]} 73. Kg2 {[%clk 0:00:12]}  Rb3 {[%clk 0:00:15]} 74. Kh3 {[%clk 0:00:13]}  Rxb2 {[%clk 0:00:15]} 75. Rc1 {[%clk 0:00:15]}  Re2 {[%clk 0:00:16]} 76. Kg4 {[%clk 0:00:16]}  Re3 {[%clk 0:00:17]} 77. Bf7 {[%clk 0:00:16]}  Rxa3 {[%clk 0:00:18]} 78. Rh1 {[%clk 0:00:18]}  Bg7 {[%clk 0:00:18]} 79. Rd1 {[%clk 0:00:18]}  Rd3 {[%clk 0:00:19]} 80. Re1 {[%clk 0:00:19]}  Re3 {[%clk 0:00:20]} 81. Rd1 {[%clk 0:00:20]}  Bd4 {[%clk 0:00:21]} 82. Rh1 {[%clk 0:00:21]}  Re7 {[%clk 0:00:22]} 83. Bg6 {[%clk 0:00:22]}  Re6 {[%clk 0:00:22]} 84. Bf5 {[%clk 0:00:24]}  Rd6 {[%clk 0:00:22]} 85. Be4 {[%clk 0:00:25]}  a3 {[%clk 0:00:23]} 0-1


[Site "Internet"]

[Event "Chessable Masters - Torneo preliminare"]
[White "Grischuk, Alexander"]
[Black "Raja, Harshit"]
[WhiteFideId "4126025"]
[BlackFideId "5089000"]
[WhiteElo "2731"]
[BlackElo "2361"]
[Result "1-0"]
[Round "7"]
[TimeControl "600+2"]
[Date "2023.03.13"]
[WhiteClock "0:00:12"]
[BlackClock "0:00:12"]

1. d4 {[%clk 0:09:48]}  Nf6 {[%clk 0:10:00]} 2. Nf3 {[%clk 0:09:49]}  d5 {[%clk 0:10:00]} 3. Bg5 {[%clk 0:09:50]}  e6 {[%clk 0:09:59]} 4. Nbd2 {[%clk 0:09:50]}  Be7 {[%clk 0:09:57]} 5. e3 {[%clk 0:09:49]}  b6 {[%clk 0:09:44]} 6. c4 {[%clk 0:09:14]}  Bb7 {[%clk 0:09:40]} 7. Rc1 {[%clk 0:09:12]}  dxc4 {[%clk 0:09:12]} 8. Bxc4 {[%clk 0:09:10]}  O-O {[%clk 0:09:13]} 9. O-O {[%clk 0:09:10]}  Nbd7 {[%clk 0:09:13]} 10. Qe2 {[%clk 0:09:03]}  h6 {[%clk 0:08:33]} 11. Bh4 {[%clk 0:08:34]}  Ne4 {[%clk 0:08:32]} 12. Bxe7 {[%clk 0:08:19]}  Qxe7 {[%clk 0:08:34]} 13. Bb5 {[%clk 0:08:16]}  Nxd2 {[%clk 0:08:17]} 14. Nxd2 {[%clk 0:08:18]}  Rac8 {[%clk 0:07:52]} 15. Bc6 {[%clk 0:08:17]}  Bxc6 {[%clk 0:07:45]} 16. Rxc6 {[%clk 0:08:19]}  e5 {[%clk 0:07:45]} 17. d5 {[%clk 0:07:56]}  e4 {[%clk 0:07:23]} 18. Rfc1 {[%clk 0:07:44]}  Nc5 {[%clk 0:05:49]} 19. b4 {[%clk 0:01:56]}  Nd3 {[%clk 0:05:44]} 20. R1c4 {[%clk 0:01:58]}  Qd7 {[%clk 0:03:15]} 21. Rd4 {[%clk 0:01:55]}  f5 {[%clk 0:02:20]} 22. h3 {[%clk 0:01:51]}  Ne5 {[%clk 0:02:02]} 23. Rc3 {[%clk 0:01:50]}  Rf6 {[%clk 0:01:59]} 24. a3 {[%clk 0:01:12]}  Rg6 {[%clk 0:01:48]} 25. Kh1 {[%clk 0:01:12]}  Rf8 {[%clk 0:01:00]} 26. Nc4 {[%clk 0:00:52]}  Nd3 {[%clk 0:00:59]} 27. f4 {[%clk 0:00:27]}  Qe7 {[%clk 0:00:24]} 28. Nb2 {[%clk 0:00:25]}  Nxb2 {[%clk 0:00:19]} 29. Qxb2 {[%clk 0:00:26]}  Rd8 {[%clk 0:00:14]} 30. Qc2 {[%clk 0:00:24]}  Rd7 {[%clk 0:00:14]} 31. Rc6 {[%clk 0:00:22]}  Rgd6 {[%clk 0:00:12]} 32. Rxd6 {[%clk 0:00:19]}  Rxd6 {[%clk 0:00:13]} 33. Rc4 {[%clk 0:00:17]}  Qf7 {[%clk 0:00:11]} 34. Rxc7 {[%clk 0:00:18]}  Qxd5 {[%clk 0:00:12]} 35. Kh2 {[%clk 0:00:16]}  a5 {[%clk 0:00:11]} 36. bxa5 {[%clk 0:00:16]}  bxa5 {[%clk 0:00:13]} 37. Rc5 {[%clk 0:00:15]}  Qd3 {[%clk 0:00:12]} 38. Qf2 {[%clk 0:00:12]}  Rd5 {[%clk 0:00:12]} 39. Qa2 {[%clk 0:00:12]} 1-0


[Site "Internet"]

[Event "Chessable Masters - Torneo preliminare"]
[White "Tregubov, Pavel V."]
[Black "Predke, Alexandr"]
[WhiteFideId "4115341"]
[BlackFideId "24107581"]
[WhiteElo "2522"]
[BlackElo "2582"]
[Result "1-0"]
[Round "7"]
[TimeControl "600+2"]
[Date "2023.03.13"]
[WhiteClock "0:00:25"]
[BlackClock "0:00:03"]

1. e4 {[%clk 0:10:01]}  c5 {[%clk 0:09:59]} 2. Nf3 {[%clk 0:10:02]}  e6 {[%clk 0:10:00]} 3. c3 {[%clk 0:10:02]}  d5 {[%clk 0:09:54]} 4. e5 {[%clk 0:10:02]}  d4 {[%clk 0:09:50]} 5. g3 {[%clk 0:09:59]}  Nc6 {[%clk 0:09:15]} 6. Bg2 {[%clk 0:09:59]}  d3 {[%clk 0:09:05]} 7. O-O {[%clk 0:09:56]}  g5 {[%clk 0:09:00]} 8. Qa4 {[%clk 0:09:13]}  Bd7 {[%clk 0:09:01]} 9. Qe4 {[%clk 0:09:11]}  Bg7 {[%clk 0:08:43]} 10. Re1 {[%clk 0:08:54]}  h5 {[%clk 0:08:33]} 11. Qxd3 {[%clk 0:08:41]}  g4 {[%clk 0:08:34]} 12. Nh4 {[%clk 0:08:40]}  Nxe5 {[%clk 0:08:33]} 13. Qe3 {[%clk 0:08:07]}  c4 {[%clk 0:08:04]} 14. b3 {[%clk 0:07:40]}  Nd3 {[%clk 0:06:54]} 15. bxc4 {[%clk 0:07:26]}  Nxe1 {[%clk 0:06:52]} 16. Qxe1 {[%clk 0:07:27]}  Bc6 {[%clk 0:06:43]} 17. Bxc6+ {[%clk 0:07:18]}  bxc6 {[%clk 0:06:45]} 18. d4 {[%clk 0:07:14]}  Bf6 {[%clk 0:06:39]} 19. Ng2 {[%clk 0:06:39]}  Ne7 {[%clk 0:06:23]} 20. Nd2 {[%clk 0:06:40]}  Ng6 {[%clk 0:06:02]} 21. Ne4 {[%clk 0:06:39]}  Be7 {[%clk 0:06:03]} 22. Nf4 {[%clk 0:06:19]}  Qa5 {[%clk 0:05:10]} 23. Nxg6 {[%clk 0:06:08]}  fxg6 {[%clk 0:05:12]} 24. c5 {[%clk 0:06:08]}  O-O {[%clk 0:05:02]} 25. Qe3 {[%clk 0:05:37]}  Rf7 {[%clk 0:04:30]} 26. Qh6 {[%clk 0:05:35]}  Rg7 {[%clk 0:04:31]} 27. Bf4 {[%clk 0:05:36]}  Rf8 {[%clk 0:04:02]} 28. Be5 {[%clk 0:05:36]}  Rff7 {[%clk 0:04:03]} 29. Bxg7 {[%clk 0:05:20]}  Rxg7 {[%clk 0:04:04]} 30. Qf4 {[%clk 0:05:20]}  Qb5 {[%clk 0:03:57]} 31. Re1 {[%clk 0:05:04]}  Kh7 {[%clk 0:03:46]} 32. Qc7 {[%clk 0:03:04]}  Qa4 {[%clk 0:03:24]} 33. Qd7 {[%clk 0:02:49]}  Qxa2 {[%clk 0:02:46]} 34. Qxc6 {[%clk 0:02:50]}  a5 {[%clk 0:02:30]} 35. Qb5 {[%clk 0:02:07]}  a4 {[%clk 0:02:24]} 36. c6 {[%clk 0:02:09]}  Bd8 {[%clk 0:02:26]} 37. c4 {[%clk 0:01:51]}  a3 {[%clk 0:02:11]} 38. d5 {[%clk 0:01:52]}  exd5 {[%clk 0:00:43]} 39. cxd5 {[%clk 0:01:52]}  Qc2 {[%clk 0:00:45]} 40. Qe2 {[%clk 0:01:12]}  Qa4 {[%clk 0:00:37]} 41. Nc5 {[%clk 0:00:53]}  Qb4 {[%clk 0:00:20]} 42. Ne6 {[%clk 0:00:47]}  Re7 {[%clk 0:00:18]} 43. c7 {[%clk 0:00:25]}  Bxc7 {[%clk 0:00:10]} 44. Ng5+ {[%clk 0:00:26]}  Kh6 {[%clk 0:00:11]} 45. Qxe7 {[%clk 0:00:27]}  Qxe7 {[%clk 0:00:05]} 46. Rxe7 {[%clk 0:00:29]}  a2 {[%clk 0:00:05]} 47. Nf7+ {[%clk 0:00:29]}  Kg7 {[%clk 0:00:05]} 48. Re1 {[%clk 0:00:30]}  Kxf7 {[%clk 0:00:04]} 49. Ra1 {[%clk 0:00:32]}  Kf6 {[%clk 0:00:03]} 50. Rxa2 {[%clk 0:00:33]}  Ke5 {[%clk 0:00:05]} 51. Ra6 {[%clk 0:00:32]}  Bd6 {[%clk 0:00:06]} 52. Ra5 {[%clk 0:00:32]}  g5 {[%clk 0:00:04]} 53. Kf1 {[%clk 0:00:32]}  Ke4 {[%clk 0:00:06]} 54. Ke2 {[%clk 0:00:33]}  Kd4 {[%clk 0:00:05]} 55. f3 {[%clk 0:00:31]}  gxf3+ {[%clk 0:00:05]} 56. Kxf3 {[%clk 0:00:32]}  g4+ {[%clk 0:00:07]} 57. Ke2 {[%clk 0:00:33]}  Ke4 {[%clk 0:00:07]} 58. Ra8 {[%clk 0:00:30]}  h4 {[%clk 0:00:07]} 59. gxh4 {[%clk 0:00:31]}  Bxh2 {[%clk 0:00:06]} 60. Rd8 {[%clk 0:00:28]}  Kf5 {[%clk 0:00:04]} 61. d6 {[%clk 0:00:25]}  Ke6 {[%clk 0:00:03]} 62. h5 {[%clk 0:00:25]} 1-0


[Site "Internet"]

[Event "Chessable Masters - Torneo preliminare"]
[White "Esipenko, Andrey"]
[Black "Matinian, Nikita"]
[WhiteFideId "24175439"]
[BlackFideId "24129100"]
[WhiteElo "2682"]
[BlackElo "2326"]
[Result "1-0"]
[Round "7"]
[TimeControl "600+2"]
[Date "2023.03.13"]
[WhiteClock "0:07:53"]
[BlackClock "0:04:34"]

1. d4 {[%clk 0:10:01]}  d6 {[%clk 0:09:59]} 2. Nf3 {[%clk 0:10:01]}  g6 {[%clk 0:10:00]} 3. g3 {[%clk 0:10:02]}  Bg7 {[%clk 0:10:01]} 4. Bg2 {[%clk 0:10:04]}  Nf6 {[%clk 0:10:02]} 5. O-O {[%clk 0:10:05]}  O-O {[%clk 0:10:03]} 6. Re1 {[%clk 0:10:07]}  c6 {[%clk 0:09:55]} 7. e4 {[%clk 0:10:07]}  Qc7 {[%clk 0:09:52]} 8. c4 {[%clk 0:10:00]}  Bg4 {[%clk 0:09:50]} 9. Nc3 {[%clk 0:09:57]}  Nbd7 {[%clk 0:09:37]} 10. h3 {[%clk 0:09:57]}  Bxf3 {[%clk 0:09:38]} 11. Bxf3 {[%clk 0:09:59]}  c5 {[%clk 0:09:37]} 12. d5 {[%clk 0:10:00]}  Ne5 {[%clk 0:08:57]} 13. Be2 {[%clk 0:10:01]}  Qc8 {[%clk 0:08:58]} 14. Kg2 {[%clk 0:10:01]}  a6 {[%clk 0:08:57]} 15. a4 {[%clk 0:10:01]}  Re8 {[%clk 0:08:22]} 16. f4 {[%clk 0:09:55]}  Ned7 {[%clk 0:08:23]} 17. Be3 {[%clk 0:09:56]}  Rb8 {[%clk 0:07:54]} 18. Qd3 {[%clk 0:09:48]}  b5 {[%clk 0:07:53]} 19. axb5 {[%clk 0:09:45]}  axb5 {[%clk 0:07:55]} 20. Nxb5 {[%clk 0:09:46]}  h5 {[%clk 0:07:00]} 21. Bf3 {[%clk 0:09:43]}  Rxb5 {[%clk 0:06:48]} 22. cxb5 {[%clk 0:09:42]}  c4 {[%clk 0:06:50]} 23. Qc2 {[%clk 0:09:43]}  e6 {[%clk 0:06:47]} 24. dxe6 {[%clk 0:09:41]}  Rxe6 {[%clk 0:06:49]} 25. Ra6 {[%clk 0:08:34]}  Kh7 {[%clk 0:05:59]} 26. Bf2 {[%clk 0:08:20]}  h4 {[%clk 0:05:44]} 27. g4 {[%clk 0:08:16]}  Nc5 {[%clk 0:05:32]} 28. Rc6 {[%clk 0:08:05]}  Qb7 {[%clk 0:05:20]} 29. Bxc5 {[%clk 0:07:56]}  Qxb5 {[%clk 0:05:17]} 30. e5 {[%clk 0:07:57]}  Qa5 {[%clk 0:04:39]} 31. Bf2 {[%clk 0:07:52]}  Nd5 {[%clk 0:04:34]} 32. Qxc4 {[%clk 0:07:53]} 1-0


[Site "Internet"]

[Event "Chessable Masters - Torneo preliminare"]
[White "Sankalp, Gupta"]
[Black "Lenderman, Aleksandr"]
[WhiteFideId "5097010"]
[BlackFideId "2021285"]
[WhiteElo "2427"]
[BlackElo "2646"]
[Result "1-0"]
[Round "7"]
[TimeControl "600+2"]
[Date "2023.03.13"]
[WhiteClock "0:01:37"]
[BlackClock "0:03:48"]

1. d4 {[%clk 0:10:01]}  e6 {[%clk 0:10:00]} 2. e4 {[%clk 0:10:01]}  d5 {[%clk 0:10:00]} 3. e5 {[%clk 0:10:02]}  c5 {[%clk 0:10:01]} 4. c3 {[%clk 0:10:03]}  Nc6 {[%clk 0:10:01]} 5. Nf3 {[%clk 0:10:04]}  Nge7 {[%clk 0:09:59]} 6. Na3 {[%clk 0:09:57]}  cxd4 {[%clk 0:09:46]} 7. cxd4 {[%clk 0:09:58]}  Nf5 {[%clk 0:09:47]} 8. Nc2 {[%clk 0:09:59]}  Be7 {[%clk 0:09:38]} 9. Bd3 {[%clk 0:09:52]}  O-O {[%clk 0:09:38]} 10. O-O {[%clk 0:09:53]}  Bd7 {[%clk 0:09:16]} 11. Kh1 {[%clk 0:09:52]}  Rc8 {[%clk 0:09:10]} 12. g4 {[%clk 0:09:51]}  Nh6 {[%clk 0:08:58]} 13. Rg1 {[%clk 0:09:23]}  Kh8 {[%clk 0:08:53]} 14. Rg3 {[%clk 0:08:31]}  Rg8 {[%clk 0:07:04]} 15. Rh3 {[%clk 0:08:18]}  Qf8 {[%clk 0:07:04]} 16. Ng5 {[%clk 0:07:56]}  Bxg5 {[%clk 0:07:04]} 17. Bxg5 {[%clk 0:07:58]}  Ne7 {[%clk 0:07:01]} 18. Qd2 {[%clk 0:07:27]}  Ng6 {[%clk 0:06:48]} 19. Rxh6 {[%clk 0:07:27]}  gxh6 {[%clk 0:06:50]} 20. Bf6+ {[%clk 0:07:26]}  Rg7 {[%clk 0:06:51]} 21. Qxh6 {[%clk 0:07:26]}  Bb5 {[%clk 0:06:45]} 22. Ne1 {[%clk 0:06:15]}  Bxd3 {[%clk 0:06:20]} 23. Nxd3 {[%clk 0:06:17]}  Ne7 {[%clk 0:06:21]} 24. Rc1 {[%clk 0:05:25]}  Nc6 {[%clk 0:06:01]} 25. Nf4 {[%clk 0:05:07]}  Kg8 {[%clk 0:05:57]} 26. Bxg7 {[%clk 0:04:58]}  Qxg7 {[%clk 0:05:57]} 27. Qh4 {[%clk 0:04:59]}  h6 {[%clk 0:05:51]} 28. Rc3 {[%clk 0:04:30]}  Kh8 {[%clk 0:05:36]} 29. h3 {[%clk 0:04:06]}  Rg8 {[%clk 0:05:28]} 30. Nh5 {[%clk 0:04:01]}  Qg6 {[%clk 0:05:29]} 31. Qf6+ {[%clk 0:03:57]}  Kh7 {[%clk 0:05:20]} 32. Qf4 {[%clk 0:03:39]}  Rd8 {[%clk 0:05:15]} 33. Rf3 {[%clk 0:03:32]}  Kg8 {[%clk 0:05:16]} 34. h4 {[%clk 0:03:25]}  Kf8 {[%clk 0:05:02]} 35. Nf6 {[%clk 0:03:20]}  Kg7 {[%clk 0:05:00]} 36. Kg2 {[%clk 0:03:14]}  Rf8 {[%clk 0:04:57]} 37. Kg3 {[%clk 0:03:02]}  Qb1 {[%clk 0:04:55]} 38. Kg2 {[%clk 0:03:01]}  Qg6 {[%clk 0:04:36]} 39. a3 {[%clk 0:03:00]}  a5 {[%clk 0:04:32]} 40. Rb3 {[%clk 0:02:50]}  Rb8 {[%clk 0:04:21]} 41. Nd7 {[%clk 0:02:50]}  Rd8 {[%clk 0:04:22]} 42. Nc5 {[%clk 0:02:42]}  h5 {[%clk 0:04:08]} 43. g5 {[%clk 0:02:38]}  Qf5 {[%clk 0:04:05]} 44. Qxf5 {[%clk 0:02:22]}  exf5 {[%clk 0:04:07]} 45. Rxb7 {[%clk 0:02:23]}  Nxd4 {[%clk 0:04:06]} 46. e6 {[%clk 0:02:23]}  Rf8 {[%clk 0:04:03]} 47. Rd7 {[%clk 0:01:43]}  Kg6 {[%clk 0:03:51]} 48. e7 {[%clk 0:01:39]}  Re8 {[%clk 0:03:51]} 49. Na6 {[%clk 0:01:37]}  Nb5 {[%clk 0:03:48]} 50. a4 {[%clk 0:01:37]} 1-0


[Site "Internet"]

[Event "Chessable Masters - Torneo preliminare"]
[White "Mikaelyan, Arman"]
[Black "Ponkratov, Pavel"]
[WhiteFideId "13304852"]
[BlackFideId "4157800"]
[WhiteElo "2456"]
[BlackElo "2586"]
[Result "1-0"]
[Round "7"]
[TimeControl "600+2"]
[Date "2023.03.13"]
[WhiteClock "0:04:27"]
[BlackClock "0:06:49"]

1. d4 {[%clk 0:09:47]}  d5 {[%clk 0:10:00]} 2. c4 {[%clk 0:09:48]}  e6 {[%clk 0:10:01]} 3. Nf3 {[%clk 0:09:49]}  Nf6 {[%clk 0:10:02]} 4. Nc3 {[%clk 0:09:51]}  Ne4 {[%clk 0:10:04]} 5. Qc2 {[%clk 0:08:48]}  Nxc3 {[%clk 0:10:04]} 6. bxc3 {[%clk 0:08:42]}  dxc4 {[%clk 0:09:21]} 7. Bg5 {[%clk 0:08:15]}  f6 {[%clk 0:09:15]} 8. Bf4 {[%clk 0:08:16]}  c5 {[%clk 0:09:15]} 9. e3 {[%clk 0:08:17]}  cxd4 {[%clk 0:09:16]} 10. Bxc4 {[%clk 0:08:02]}  dxe3 {[%clk 0:09:04]} 11. O-O {[%clk 0:07:57]}  exf2+ {[%clk 0:09:05]} 12. Kh1 {[%clk 0:07:54]}  Be7 {[%clk 0:08:59]} 13. Rad1 {[%clk 0:07:52]}  Qb6 {[%clk 0:08:56]} 14. Nd4 {[%clk 0:07:30]}  O-O {[%clk 0:08:32]} 15. Rb1 {[%clk 0:07:02]}  Qc5 {[%clk 0:08:31]} 16. Bxe6+ {[%clk 0:06:56]}  Bxe6 {[%clk 0:07:57]} 17. Nxe6 {[%clk 0:06:58]}  Qc4 {[%clk 0:07:58]} 18. Nxf8 {[%clk 0:06:54]}  Qxf4 {[%clk 0:07:59]} 19. Qb3+ {[%clk 0:06:27]}  Kxf8 {[%clk 0:07:58]} 20. Qxb7 {[%clk 0:06:28]}  Na6 {[%clk 0:07:04]} 21. Qxa8+ {[%clk 0:06:26]}  Kf7 {[%clk 0:07:05]} 22. Qd5+ {[%clk 0:06:26]}  Kg6 {[%clk 0:07:05]} 23. Qd3+ {[%clk 0:06:27]}  Kh6 {[%clk 0:07:06]} 24. g3 {[%clk 0:05:12]}  Nc5 {[%clk 0:06:56]} 25. gxf4 {[%clk 0:04:41]}  Nxd3 {[%clk 0:06:55]} 26. Rbd1 {[%clk 0:04:42]}  Nxf4 {[%clk 0:06:51]} 27. Rxf2 {[%clk 0:04:44]}  g5 {[%clk 0:06:53]} 28. Rd7 {[%clk 0:04:39]}  Bc5 {[%clk 0:06:54]} 29. Rxf4 {[%clk 0:04:37]}  gxf4 {[%clk 0:06:53]} 30. Kg2 {[%clk 0:04:38]}  Kg6 {[%clk 0:06:51]} 31. Kf3 {[%clk 0:04:39]}  Be3 {[%clk 0:06:52]} 32. c4 {[%clk 0:04:36]}  h5 {[%clk 0:06:49]} 33. Rd5 {[%clk 0:04:27]} 1-0


[Site "Internet"]

[Event "Chessable Masters - Torneo preliminare"]
[White "Huschenbeth, Niclas"]
[Black "Guseinov, Gadir"]
[WhiteFideId "24604747"]
[BlackFideId "13401378"]
[WhiteElo "2566"]
[BlackElo "2632"]
[Result "0-1"]
[Round "7"]
[TimeControl "600+2"]
[Date "2023.03.13"]
[WhiteClock "0:00:21"]
[BlackClock "0:03:59"]

1. e4 {[%clk 0:08:37]}  c5 {[%clk 0:09:56]} 2. Nf3 {[%clk 0:08:35]}  g6 {[%clk 0:09:58]} 3. d4 {[%clk 0:08:36]}  cxd4 {[%clk 0:09:59]} 4. Nxd4 {[%clk 0:08:36]}  Nc6 {[%clk 0:10:00]} 5. c4 {[%clk 0:08:36]}  Nf6 {[%clk 0:10:01]} 6. Nc3 {[%clk 0:08:37]}  Nxd4 {[%clk 0:10:02]} 7. Qxd4 {[%clk 0:08:37]}  d6 {[%clk 0:10:04]} 8. Be2 {[%clk 0:08:36]}  Bg7 {[%clk 0:10:06]} 9. Be3 {[%clk 0:08:37]}  O-O {[%clk 0:10:07]} 10. Qd2 {[%clk 0:08:38]}  a5 {[%clk 0:10:08]} 11. O-O {[%clk 0:08:39]}  a4 {[%clk 0:10:09]} 12. Bd4 {[%clk 0:08:35]}  Bd7 {[%clk 0:10:03]} 13. Qe3 {[%clk 0:08:30]}  Bc6 {[%clk 0:09:55]} 14. Bb6 {[%clk 0:08:18]}  Qb8 {[%clk 0:09:55]} 15. Rad1 {[%clk 0:08:01]}  Nd7 {[%clk 0:09:55]} 16. Bd4 {[%clk 0:07:27]}  Bxd4 {[%clk 0:09:49]} 17. Rxd4 {[%clk 0:07:29]}  Qa7 {[%clk 0:09:12]} 18. Nd5 {[%clk 0:07:28]}  Rae8 {[%clk 0:09:07]} 19. Qc3 {[%clk 0:06:49]}  Qc5 {[%clk 0:08:39]} 20. b4 {[%clk 0:06:21]}  axb3 {[%clk 0:08:39]} 21. axb3 {[%clk 0:06:23]}  Bxd5 {[%clk 0:08:28]} 22. Rxd5 {[%clk 0:05:16]}  Qc7 {[%clk 0:08:28]} 23. Rb5 {[%clk 0:04:55]}  Ra8 {[%clk 0:08:25]} 24. Ra1 {[%clk 0:04:36]}  b6 {[%clk 0:08:18]} 25. h3 {[%clk 0:04:24]}  Ra7 {[%clk 0:08:12]} 26. Rxa7 {[%clk 0:04:08]}  Qxa7 {[%clk 0:08:14]} 27. Qd4 {[%clk 0:03:49]}  Ra8 {[%clk 0:08:09]} 28. Bg4 {[%clk 0:03:38]}  Qa1+ {[%clk 0:08:08]} 29. Qxa1 {[%clk 0:03:39]}  Rxa1+ {[%clk 0:08:10]} 30. Kh2 {[%clk 0:03:40]}  e6 {[%clk 0:08:11]} 31. e5 {[%clk 0:03:17]}  dxe5 {[%clk 0:07:42]} 32. Bf3 {[%clk 0:03:16]}  Ra5 {[%clk 0:07:14]} 33. Rb4 {[%clk 0:02:48]}  Rc5 {[%clk 0:07:15]} 34. Ra4 {[%clk 0:02:50]}  Rc7 {[%clk 0:07:16]} 35. Ra8+ {[%clk 0:02:22]}  Kg7 {[%clk 0:07:17]} 36. Be2 {[%clk 0:02:09]}  e4 {[%clk 0:07:10]} 37. Kg3 {[%clk 0:02:09]}  f5 {[%clk 0:07:07]} 38. Kf4 {[%clk 0:02:04]}  e5+ {[%clk 0:07:03]} 39. Ke3 {[%clk 0:02:05]}  Nc5 {[%clk 0:06:54]} 40. b4 {[%clk 0:02:02]}  f4+ {[%clk 0:06:38]} 41. Kd2 {[%clk 0:02:03]}  Nb3+ {[%clk 0:06:40]} 42. Kc3 {[%clk 0:01:49]}  Nd4 {[%clk 0:06:41]} 43. Bf1 {[%clk 0:01:46]}  Nf5 {[%clk 0:06:06]} 44. c5 {[%clk 0:01:33]}  e3 {[%clk 0:05:58]} 45. fxe3 {[%clk 0:01:13]}  Nxe3 {[%clk 0:06:00]} 46. Bc4 {[%clk 0:00:47]}  bxc5 {[%clk 0:05:08]} 47. b5 {[%clk 0:00:48]}  Rb7 {[%clk 0:05:09]} 48. Rc8 {[%clk 0:00:41]}  e4 {[%clk 0:04:19]} 49. Rxc5 {[%clk 0:00:42]}  f3 {[%clk 0:04:10]} 50. gxf3 {[%clk 0:00:35]}  exf3 {[%clk 0:04:11]} 51. Re5 {[%clk 0:00:24]}  Nxc4 {[%clk 0:04:00]} 52. Kxc4 {[%clk 0:00:21]}  f2 {[%clk 0:03:59]} 0-1


[Site "Internet"]